bitfinex/quotes_ETHUSD_20251017
["timestamp","ask_amount","ask_price","bid_price","bid_amount"]
[1760701335732,25.588097,3784.6,3783.1,0.1655]
[1760701335909,5.1945,3784.4,3783.1,0.1655]
[1760701336083,0.5031312,3784.3,3783.0,2.6434047]
[1760701336279,8.63042,3784.2,3782.8,0.1655]
[1760701336509,8.63042,3784.2,3781.7,0.23085293]
[1760701336510,6.285662,3784.0,3782.4,0.1655]
[1760701336836,1.76103295,3784.1,3782.8,2.64350741]
[1760701336837,0.03303469,3783.9,3782.8,2.64350741]
[1760701336980,2.3823,3783.8,3782.8,2.64350741]
[1760701337327,0.03303644,3783.7,3782.7,2.64358673]
[1760701337528,0.03303644,3783.7,3782.6,2.64363123]
[1760701337828,0.4701,3783.6,3782.6,2.64364514]
[1760701337982,0.03303819,3783.5,3782.1,0.1655]
[1760701338183,0.03303819,3783.5,3782.7,2.64354576]
[1760701338624,0.03303819,3783.5,3783.0,2.64339451]
[1760701338823,0.68803956,3783.8,3783.0,2.64339451]
[1760701338998,0.68803956,3783.8,3783.0,2.64339087]
[1760701339196,0.68803956,3783.8,3782.9,2.64345651]
[1760701339496,0.68803956,3783.8,3782.8,2.64352069]
[1760701339814,0.68803956,3783.8,3782.6,2.64367569]
[1760701339815,0.50313644,3783.7,3782.7,2.64356198]
[1760701340020,0.50313644,3783.7,3783.0,2.64340078]
[1760701340233,0.4701,3783.7,3783.1,2.64333115]
[1760701340382,0.68803956,3783.8,3783.2,2.64325659]
[1760701340731,0.68803956,3783.8,3782.9,2.64341824]
[1760701340890,0.03303644,3783.7,3782.4,0.6336]
[1760701341091,0.03303644,3783.7,3783.1,2.64332186]
[1760701341304,0.03303644,3783.7,3783.2,2.64324718]
[1760701341508,0.68803956,3783.8,3783.3,2.64318412]
[1760701341750,0.68803956,3783.8,3783.0,2.6433844]
[1760701341751,0.68803956,3783.8,3783.2,2.64324482]
[1760701341917,0.03303644,3783.7,3783.1,2.64331564]
[1760701342235,0.46073956,3783.8,3782.6,0.6336]
[1760701342444,0.41466218,3783.8,3783.7,2.64291566]
[1760701342607,0.41466218,3783.8,3783.7,3.27651566]
[1760701342807,0.41466218,3783.8,3783.7,3.44201566]
[1760701343044,0.2173,3785.0,3783.8,0.6336]
[1760701343349,0.04606364,3785.0,3784.9,2.64207772]
[1760701343551,0.41454342,3785.3,3785.0,2.64196101]
[1760701343720,0.41454342,3785.3,3785.0,2.64198816]
[1760701343903,0.04605756,3785.6,3784.1,0.1655]
[1760701344238,0.26031724,3785.9,3785.2,2.64180798]
[1760701344535,0.26031724,3785.9,3784.2,0.6336]
[1760701344536,0.132,3785.3,3785.1,2.64192424]
[1760701344740,0.132,3785.3,3785.2,2.64186832]
[1760701345101,0.132,3785.3,3784.7,3.40779297]
[1760701345102,0.132,3785.5,3785.4,2.64172248]
[1760701345304,0.132,3785.5,3785.1,2.64193422]
[1760701345305,0.132,3785.5,3785.1,0.6336]
[1760701345507,0.132,3785.5,3785.2,2.64181546]
[1760701345707,0.132,3785.5,3785.0,0.6336]
[1760701345909,0.132,3785.5,3785.4,2.64172874]
[1760701346128,0.41441354,3786.1,3785.5,2.64163959]
[1760701346342,0.03301637,3786.0,3785.4,2.64170617]
[1760701346540,0.03301637,3786.0,3785.5,2.64164428]
[1760701346742,0.03301637,3786.0,3785.1,0.6336]
[1760701346947,0.03301637,3786.0,3785.5,2.64159623]
[1760701347239,0.03301637,3786.0,3785.6,2.64158088]
[1760701347755,0.03301637,3786.0,3785.5,2.64164536]
[1760701349163,0.46046764,3786.1,3785.3,0.6336]
[1760701349364,0.4303,3786.8,3785.4,2.64172874]
[1760701349667,0.41436003,3786.7,3785.6,0.6336]
[1760701349813,0.41436003,3786.7,3785.7,0.7991]
[1760701350014,0.41436003,3786.7,3786.5,2.64093203]
[1760701350212,0.41436003,3786.7,3785.7,0.7991]
[1760701350213,0.41436003,3786.7,3786.6,2.64089156]
[1760701350415,0.002,3786.8,3786.7,2.64082182]
[1760701351312,0.002,3786.8,3786.6,2.64087214]
[1760701351855,0.002,3786.8,3786.7,2.64082182]
[1760701352600,0.002,3786.8,3786.7,3.27442182]
[1760701352855,0.002,3786.8,3786.7,3.43992182]
[1760701353143,0.002,3786.8,3786.7,4.04800947]
[1760701353733,0.002,3786.8,3786.7,5.77600947]
[1760701355823,0.002,3786.8,3786.7,6.90100947]
[1760701356029,0.002,3786.8,3786.7,2.64082182]
[1760701356229,0.0012,3786.8,3786.7,2.77282182]
[1760701356449,0.0012,3786.8,3786.7,2.93832182]
[1760701356651,0.0012,3786.8,3786.7,3.57192182]
[1760701357039,0.0012,3786.8,3786.7,2.64082182]
[1760701357241,0.0012,3786.8,3786.7,3.50729947]
[1760701357449,0.0012,3786.8,3786.7,4.14089947]
[1760701358369,0.0012,3786.8,3786.7,8.72089947]
[1760701359471,0.0012,3786.8,3786.7,5.86889947]
[1760701359876,0.0012,3786.8,3786.7,8.72089947]
[1760701360046,0.0012,3786.8,3786.7,5.70339947]
[1760701360940,0.06496414,3788.2,3787.6,0.6336]
[1760701361167,0.06496414,3788.2,3786.8,0.6336]
[1760701361168,0.06496414,3788.2,3787.3,0.6336]
[1760701361352,0.04602564,3788.5,3787.3,0.6336]
[1760701361564,0.04602564,3788.5,3787.6,0.6336]
[1760701361765,0.04602564,3788.5,3787.8,2.64004887]
[1760701362080,0.04602564,3788.5,3786.9,2.852]
[1760701362381,0.04602564,3788.5,3787.6,2.64014364]
[1760701362382,0.2173,3787.9,3787.6,2.64014364]
[1760701362579,0.4283,3787.8,3787.6,2.64019038]
[1760701362744,0.4283,3787.7,3786.8,2.54171324]
[1760701363165,0.4283,3787.7,3787.4,2.6402811]
[1760701363573,0.4283,3787.6,3787.2,2.64044604]
[1760701363773,0.4283,3787.6,3787.4,2.64032831]
[1760701363992,0.2173,3787.9,3787.4,2.64032831]
[1760701364403,0.2173,3787.9,3787.0,1.728]
[1760701364566,0.2173,3787.9,3787.5,2.6402491]
[1760701364768,0.6456,3787.9,3787.5,2.6402491]
[1760701365010,0.6456,3787.9,3787.6,2.64017592]
[1760701365304,0.4283,3787.8,3787.5,2.64023838]
[1760701365510,0.2173,3787.9,3787.6,2.6401629]
[1760701366114,0.2173,3787.9,3787.5,2.64024698]
[1760701366471,0.6456,3787.9,3787.4,2.64030704]
[1760701366672,0.4283,3787.8,3787.5,2.64026338]
[1760701367000,0.2173,3787.9,3787.6,2.64013826]
[1760701367171,0.2173,3787.9,3787.4,0.132]
[1760701367482,0.1312,3788.1,3787.7,2.64011693]
[1760701367684,0.5595,3788.1,3787.7,2.64011693]
[1760701368099,0.1312,3788.1,3787.6,2.64017807]
[1760701368301,0.4283,3788.0,3787.7,2.64012028]
[1760701368694,0.03299545,3788.4,3787.7,0.54123757]
[1760701368695,0.1312,3788.2,3787.7,0.54123757]
[1760701368879,0.84245967,3788.5,3787.9,2.63994262]
[1760701369074,0.03299545,3788.4,3787.7,2.6400945]
[1760701369278,0.03299545,3788.4,3787.7,2.64010442]
[1760701369590,0.4283,3788.3,3787.7,2.64010442]
[1760701370809,0.0329911,3788.9,3787.1,1.728]
[1760701370970,0.4283,3788.8,3788.1,2.63979587]
[1760701371380,0.4283,3788.8,3787.2,0.43686705]
[1760701371721,0.41412796,3789.2,3788.8,2.63935581]
[1760701371893,0.4361,3789.5,3788.8,2.63935581]
[1760701372233,0.4361,3789.0,3787.5,2.3616]
[1760701372377,0.228,3788.9,3788.5,2.63951841]
[1760701372577,0.4361,3788.8,3787.9,2.63998329]
[1760701372809,0.46909284,3788.7,3787.9,2.63992631]
[1760701373111,0.03299284,3788.7,3787.5,2.64021499]
[1760701373420,0.4361,3788.6,3787.8,2.64004441]
[1760701373623,0.03299458,3788.5,3787.8,2.64004441]
[1760701374109,0.03299458,3788.5,3787.6,2.64017452]
[1760701374110,0.41909458,3788.6,3787.3,0.6336]
[1760701374311,0.41909458,3788.6,3787.2,0.43686705]
[1760701374312,0.41909458,3788.6,3788.2,2.63971591]
[1760701374527,0.228,3788.9,3787.7,2.64012461]
[1760701374822,0.228,3788.9,3787.9,2.63998521]
[1760701374981,0.228,3788.9,3788.5,2.63949795]
[1760701375180,0.228,3788.9,3788.6,2.63943039]
[1760701375391,0.002,3788.9,3788.6,2.63943039]
[1760701375816,0.226,3788.8,3787.8,2.64005491]
[1760701375978,0.226,3788.8,3788.5,2.63951485]
[1760701376177,0.226,3788.8,3788.6,2.63949228]
[1760701376593,0.002,3788.9,3788.6,2.63949228]
[1760701377006,0.002,3788.9,3788.5,2.63954218]
[1760701377436,0.002,3788.9,3788.7,2.63938464]
[1760701377723,0.002,3788.9,3788.8,2.6393581]
[1760701378224,0.002,3788.9,3787.9,0.31680868]
[1760701378225,0.228,3788.9,3787.9,0.31680868]
[1760701378429,0.228,3788.9,3788.7,2.63937943]
[1760701378723,0.002,3788.9,3788.8,2.6393581]
[1760701378890,0.002,3788.9,3788.5,0.1312]
[1760701378891,0.228,3788.9,3788.5,0.1312]
[1760701379092,0.228,3788.9,3788.6,2.63945301]
[1760701379318,0.228,3788.9,3788.7,2.63941107]
[1760701379522,0.228,3788.9,3788.5,0.1312]
[1760701379736,0.002,3788.9,3788.8,2.6393581]
[1760701379919,0.0012,3788.9,3788.8,2.6393581]
[1760701380095,0.0012,3788.9,3788.8,2.7705581]
[1760701380532,0.0012,3788.9,3788.8,2.6393581]
[1760701381094,0.0012,3788.9,3788.8,3.29843794]
[1760701381336,0.0012,3788.9,3788.8,3.93203794]
[1760701381630,0.0012,3788.9,3788.8,5.66003794]
[1760701381833,0.0012,3788.9,3788.8,5.1321581]
[1760701382709,0.0012,3788.9,3788.8,2.7705581]
[1760701382920,0.0012,3788.9,3788.8,2.6393581]
[1760701383131,0.0012,3788.9,3788.8,2.66575168]
[1760701383494,0.0012,3788.9,3788.8,2.7705581]
[1760701384735,0.0012,3788.9,3788.8,2.6393581]
[1760701386818,0.2268,3788.9,3788.8,2.6393581]
[1760701387515,0.0012,3788.9,3788.8,2.6393581]
[1760701388206,0.0012,3788.9,3788.8,2.7705581]
[1760701388808,0.0012,3788.9,3788.8,2.6393581]
[1760701390046,0.7004,3788.9,3788.8,2.6393581]
[1760701390446,0.0012,3788.9,3788.8,2.6393581]
[1760701391148,0.0012,3788.9,3788.8,5.02735168]
[1760701391346,0.002,3789.6,3789.5,3.27247056]
[1760701391544,0.002,3789.6,3789.5,3.59971762]
[1760701392044,0.002,3789.6,3789.5,2.63887056]
[1760701392249,0.4756,3789.6,3787.7,14.46799361]
[1760701392453,0.4756,3789.6,3788.0,1.728]
[1760701392745,0.4756,3789.6,3789.2,2.63903372]
[1760701393041,0.4756,3789.6,3788.5,1.728]
[1760701393042,0.4736,3789.5,3788.5,1.728]
[1760701393213,0.002,3789.6,3788.6,0.22175497]
[1760701393411,0.4736,3789.5,3789.1,2.63914629]
[1760701393612,0.4736,3789.4,3788.5,2.63956711]
[1760701393844,0.4736,3789.4,3789.1,2.63910326]
[1760701394045,0.4736,3789.3,3789.1,2.63910326]
[1760701394213,0.4736,3789.2,3788.6,2.63944645]
[1760701394547,0.2256,3788.7,3788.6,2.63949743]
[1760701394731,0.4736,3789.5,3789.1,2.63908847]
[1760701394935,0.4736,3789.4,3789.1,2.63908847]
[1760701395130,0.4736,3789.4,3788.6,2.63946901]
[1760701395337,0.002,3789.6,3789.1,2.63909433]
[1760701395644,0.002,3789.6,3789.5,2.63887056]
[1760701396048,0.002,3789.6,3789.5,2.66525926]
[1760701396250,0.002,3789.6,3789.5,3.29885926]
[1760701396457,0.002,3789.6,3789.5,2.63887056]
[1760701397151,0.4756,3789.6,3788.4,2.63963463]
[1760701397350,0.4756,3789.6,3787.7,2.845]
[1760701397351,0.03071361,3789.5,3787.7,2.845]
[1760701397679,0.4756,3789.6,3788.2,0.6336]
[1760701397953,0.002,3789.6,3789.4,2.63893307]
[1760701398141,0.002,3789.6,3789.5,2.63887056]
[1760701398341,0.002,3789.6,3789.1,2.63914284]
[1760701398537,0.002,3789.6,3789.0,1.728]
[1760701398738,0.002,3789.6,3787.9,0.59587583]
[1760701398917,0.4736,3789.5,3788.8,2.63931144]
[1760701399118,0.2256,3788.9,3788.7,2.63941369]
[1760701399342,0.6992,3788.9,3788.8,2.6393581]
[1760701399551,0.2256,3788.9,3788.8,2.6393581]
[1760701400050,0.2256,3788.9,3788.0,2.63986797]
[1760701400237,0.6992,3788.9,3788.1,1.728]
[1760701400443,0.2256,3788.9,3788.0,0.4841468]
[1760701400750,0.88762284,3789.5,3788.1,2.3616]
[1760701400950,0.88762284,3789.5,3788.0,2.63991552]
[1760701400951,0.88762284,3789.5,3788.6,2.63944503]
[1760701401152,0.4736,3789.5,3788.7,0.02639427]
[1760701401351,0.002,3789.6,3788.5,0.6336]
[1760701401594,0.002,3789.6,3789.5,2.63887056]
[1760701403752,0.0012,3789.6,3789.5,2.63887056]
[1760701405091,0.4514,3789.6,3789.5,2.63887056]
[1760701405461,0.0012,3789.6,3789.5,2.63887056]
[1760701408650,0.0012,3789.6,3789.5,3.1666586]
[1760701408853,0.0012,3789.6,3789.5,3.2978586]
[1760701409068,0.0012,3789.6,3789.5,2.77007056]
[1760701409281,0.4514,3789.6,3789.5,2.77007056]
[1760701409882,0.0012,3789.6,3789.5,2.77007056]
[1760701413781,0.4514,3789.6,3789.5,0.1312]
[1760701413997,0.4514,3789.6,3789.5,2.63887056]
[1760701414377,0.0012,3789.6,3789.5,2.63887056]
[1760701414711,0.4514,3789.6,3789.5,2.63887056]
[1760701414909,0.0012,3789.6,3789.5,2.63887056]
[1760701416172,0.0012,3789.6,3789.5,3.19314149]
[1760701416518,0.4514,3789.6,3789.3,0.001]
[1760701416716,0.03071361,3789.5,3789.3,0.001]
[1760701417127,0.4502,3789.4,3789.3,0.001]
[1760701418509,0.0012,3789.6,3789.5,2.63887056]
[1760701418707,0.0012,3789.6,3789.5,4.36687056]
[1760701419320,0.0012,3789.6,3789.5,5.09080164]
[1760701420037,0.0012,3789.6,3789.5,2.63887056]
[1760701420420,0.002,3789.7,3789.5,2.63887056]
[1760701420421,1e-08,3789.7,3789.6,2.63880092]
[1760701420744,0.2325,3791.4,3791.0,2.63782643]
[1760701420930,0.2325,3791.4,3791.3,2.6376177]
[1760701421130,0.4502,3791.9,3791.3,2.6376177]
[1760701421308,0.03071361,3791.9,3791.5,2.63743339]
[1760701421514,0.03071361,3791.9,3790.4,2.63823685]
[1760701421515,0.6827,3791.8,3791.7,2.63733945]
[1760701421921,0.6827,3791.8,3791.4,2.63750069]
[1760701422119,0.6827,3791.8,3791.2,2.63767193]
[1760701422120,0.4502,3791.7,3790.7,1.728]
[1760701422419,0.4502,3791.7,3791.5,2.63746718]
[1760701422612,0.2325,3791.8,3791.5,2.63746718]
[1760701422613,0.4502,3791.6,3791.5,2.63746718]
[1760701422814,0.4502,3791.6,3791.4,2.63752629]
[1760701423137,0.2325,3791.8,3791.6,2.63734178]
[1760701423441,0.2325,3791.8,3790.9,2.63789601]
[1760701423746,0.2256,3792.0,3790.9,2.63789601]
[1760701423747,0.2256,3792.0,3791.9,2.63720034]
[1760701424124,0.1312,3792.1,3792.0,2.6371308]
[1760701424648,0.61211361,3792.1,3790.9,0.2874056]
[1760701424853,0.1312,3791.5,3791.0,0.1312]
[1760701425149,0.2325,3791.7,3791.6,2.637409]
[1760701425445,0.4502,3792.1,3792.0,2.6371308]
[1760701425645,0.4502,3792.1,3791.7,2.63732577]
[1760701425851,0.4502,3792.6,3791.8,0.02637269]
[1760701426055,0.4502,3792.6,3791.5,2.63747798]
[1760701426056,0.4502,3792.6,3792.0,2.6371308]
[1760701426239,0.4502,3792.6,3792.1,2.63706125]
[1760701426419,0.45970551,3792.8,3792.2,2.63699044]
[1760701426620,0.45970551,3792.8,3791.8,2.63721977]
[1760701426621,0.2325,3792.3,3791.8,2.63721977]
[1760701426826,0.2325,3792.3,3790.7,2.63803519]
[1760701426827,3.106584,3791.8,3790.2,2.63837352]
[1760701427030,2.422024,3791.6,3789.4,2.63890759]
[1760701427217,0.48091361,3791.5,3790.6,2.63809144]
[1760701427549,0.48011361,3791.4,3790.7,2.63803321]
[1760701427788,0.48011361,3791.4,3790.0,2.63852242]
[1760701427789,0.2325,3790.8,3790.6,2.63807217]
[1760701427953,0.41380709,3791.6,3790.7,2.63803519]
[1760701428119,0.2325,3790.8,3790.5,2.63816975]
[1760701428319,0.2325,3791.0,3790.7,2.63803519]
[1760701428849,0.2325,3791.0,3790.1,2.63845281]
[1760701429013,0.41380709,3791.6,3791.0,2.63782495]
[1760701429218,0.03071361,3791.8,3790.5,2.63817438]
[1760701429419,0.48091361,3791.8,3790.7,2.63802386]
[1760701429639,0.41378798,3791.6,3790.7,2.63798021]
[1760701429914,0.4502,3791.5,3790.3,1.728]
[1760701430116,0.48091361,3791.4,3790.1,0.30522599]
[1760701430447,0.48091361,3791.4,3789.9,0.41380709]
[1760701430646,0.48091361,3791.4,3790.5,2.63812498]
[1760701430847,0.48091361,3791.4,3790.6,2.63809082]
[1760701431151,0.48091361,3791.4,3790.7,2.63803519]
[1760701431152,0.002,3790.8,3790.7,2.63803519]
[1760701431739,0.002,3790.8,3790.5,2.63816745]
[1760701431740,0.002,3790.8,3790.6,2.63808435]
[1760701431953,0.002,3790.8,3790.7,2.63803519]
[1760701435345,0.2326,3790.8,3790.7,2.63803519]
[1760701435746,0.002,3790.8,3790.7,2.63803519]
[1760701436069,0.474,3790.8,3790.7,2.63803519]
[1760701436271,0.002,3790.8,3790.7,2.63803519]
[1760701436842,0.474,3790.8,3790.4,2.63823493]
[1760701437174,0.474,3790.8,3790.0,2.86911112]
[1760701437175,0.50271361,3790.7,3790.0,0.2306]
[1760701437344,0.1312,3790.5,3790.1,2.638448]
[1760701437543,0.1312,3790.1,3790.0,2.63850806]
[1760701437873,0.1312,3790.1,3789.9,2.63858148]
[1760701438170,0.1312,3790.1,3789.7,2.63872913]
[1760701438171,0.2306,3790.0,3789.3,0.001]
[1760701438470,0.1312,3790.1,3789.5,0.1312]
[1760701438675,0.7026,3790.0,3789.7,2.63871178]
[1760701438870,0.7026,3790.0,3789.9,2.63859204]
[1760701438871,0.2306,3790.0,3789.9,2.63859204]
[1760701439076,0.7026,3790.0,3789.7,2.63866957]
[1760701439284,0.2306,3790.0,3789.5,0.1312]
[1760701439456,0.1312,3789.8,3789.3,0.001]
[1760701439981,0.1312,3789.8,3789.7,2.63873129]
[1760701440181,0.002,3790.8,3790.1,2.63844374]
[1760701440182,0.472,3790.5,3790.1,2.63844374]
[1760701440368,0.472,3790.4,3789.5,2.63880543]
[1760701440680,0.472,3790.4,3790.1,2.63840303]
[1760701440883,0.1312,3790.1,3790.0,2.63850796]
[1760701441183,0.1312,3790.1,3789.9,2.63853897]
[1760701441346,0.2306,3789.9,3789.3,0.1322]
[1760701441550,0.2306,3789.9,3789.8,2.63866167]
[1760701441773,0.2306,3789.9,3789.7,2.63871799]
[1760701442078,0.41391623,3790.5,3790.1,2.63841656]
[1760701442384,0.88311623,3790.5,3790.1,2.63845238]
[1760701442694,0.41391623,3790.5,3790.3,2.63830006]
[1760701442908,0.002,3790.8,3790.7,2.63803519]
[1760701443047,0.1332,3790.8,3790.7,2.63803519]
[1760701443552,0.002,3790.8,3790.7,2.63803519]
[1760701444174,0.1332,3790.8,3790.7,2.63803519]
[1760701445152,0.2282,3791.3,3791.0,0.3668]
[1760701445486,0.4712,3791.2,3791.0,0.3668]
[1760701445683,0.4692,3791.1,3791.0,0.3668]
[1760701445860,0.4692,3791.1,3791.0,3.00462643]
[1760701446263,0.4692,3791.1,3790.3,2.63826443]
[1760701446264,0.49991361,3791.1,3789.4,0.6336]
[1760701446467,0.1312,3790.7,3790.0,2.63848185]
[1760701446678,0.1312,3790.1,3789.6,2.63880092]
[1760701447000,0.1312,3790.1,3789.5,0.1312]
[1760701447173,0.41382207,3791.1,3790.6,2.63805224]
[1760701447378,0.1312,3790.7,3789.3,0.3005]
[1760701447580,0.41382207,3791.1,3789.4,0.3075794]
[1760701447581,0.4692,3790.6,3789.4,0.3075794]
[1760701447777,0.4692,3790.6,3789.4,0.0263894]
[1760701447992,0.41382207,3791.1,3790.5,2.63817438]
[1760701448187,0.49991361,3791.0,3789.5,0.2995]
[1760701448387,0.49991361,3791.0,3790.2,2.63832738]
[1760701449096,0.4692,3790.9,3789.9,0.001]
[1760701449284,0.03071361,3790.8,3789.9,0.001]
[1760701449485,0.4692,3790.9,3789.9,0.001]
[1760701449797,0.4692,3790.9,3790.2,2.63835019]
[1760701449798,0.41388971,3790.6,3790.2,2.63835019]
[1760701450103,0.41388971,3790.6,3789.9,0.001]
[1760701450104,0.04798831,3791.2,3790.6,2.63809403]
[1760701450326,0.04798831,3791.2,3790.5,2.63816081]
[1760701450470,0.91378246,3791.1,3790.4,2.63823193]
[1760701450664,0.4692,3791.0,3790.2,2.63837652]
[1760701450869,0.03071361,3790.9,3790.3,2.63824711]
[1760701451093,0.4692,3791.0,3789.9,0.001]
[1760701451397,0.41306885,3791.1,3791.0,2.63782643]
[1760701451911,0.4692,3791.1,3790.2,2.63832474]
[1760701452111,0.49991361,3791.0,3789.9,0.001]
[1760701452284,7.806922,3790.9,3789.9,0.001]
[1760701452484,0.86139717,3790.8,3789.9,0.001]
[1760701452687,0.49991361,3790.8,3789.9,0.001]
[1760701453014,0.4692,3790.8,3789.9,0.001]
[1760701453316,0.03071361,3790.7,3789.9,0.001]
[1760701453684,0.4692,3790.6,3789.9,0.001]
[1760701453884,0.03071361,3790.5,3789.9,2.63959065]
[1760701454190,0.4692,3790.6,3789.9,2.63958094]
[1760701454390,0.4692,3790.4,3789.9,0.001]
[1760701454688,0.4692,3790.4,3789.9,1.729]
[1760701454907,0.45985104,3791.0,3790.1,1.728]
[1760701455106,0.4692,3790.3,3790.1,1.728]
[1760701455305,0.41385799,3791.0,3789.9,0.001]
[1760701455306,0.03071361,3790.9,3789.9,0.001]
[1760701455516,0.03071361,3790.9,3790.3,2.63830924]
[1760701455718,0.4692,3790.8,3789.9,0.001]
[1760701455923,0.03071361,3790.7,3790.0,1.728]
[1760701456100,0.4692,3790.6,3789.9,1.729]
[1760701456415,0.49991361,3790.5,3789.9,4.36758706]
[1760701456720,0.41389821,3790.6,3790.1,2.63839486]
[1760701456891,0.49991361,3790.5,3790.0,1.728]
[1760701457216,0.4692,3790.4,3790.0,2.63851263]
[1760701457422,0.41389821,3790.6,3790.1,4.36642833]
[1760701457624,0.88309821,3790.6,3790.1,2.63845281]
[1760701458119,0.1312,3790.3,3790.1,0.02638452]
[1760701458287,0.1312,3790.3,3789.9,0.001]
[1760701458288,0.002,3791.2,3790.5,2.63817438]
[1760701458489,0.002,3791.2,3790.6,2.63804136]
[1760701458490,0.1312,3790.8,3790.6,2.63804136]
[1760701458831,0.002,3791.2,3790.6,2.63804136]
[1760701458832,0.41587066,3791.2,3791.1,2.63775685]
[1760701458988,0.002,3791.2,3791.1,2.78755685]
[1760701459389,0.002,3791.2,3791.1,5.44865685]
[1760701459624,0.002,3791.2,3791.1,2.63775685]
[1760701459789,0.002,3791.2,3790.7,0.1498]
[1760701459990,0.4712,3791.2,3790.7,2.63800322]
[1760701460224,0.002,3791.2,3790.3,0.1498]
[1760701460400,0.6974,3791.1,3790.8,2.63795453]
[1760701460598,0.49991361,3791.0,3790.2,2.78817753]
[1760701460797,0.49991361,3791.0,3789.9,0.001]
[1760701460798,0.4692,3791.0,3789.9,0.001]
[1760701460999,0.03071361,3790.9,3790.5,2.63817287]
[1760701461211,0.03071361,3790.9,3790.4,2.63823381]
[1760701461415,0.2282,3791.1,3790.2,0.1498]
[1760701461416,0.2282,3791.1,3790.6,2.63807581]
[1760701461588,0.6642,3791.1,3790.4,2.63822681]
[1760701461790,0.002,3791.2,3791.0,2.63782643]
[1760701461988,0.002,3791.2,3790.7,2.63800583]
[1760701462291,0.002,3791.2,3790.4,0.27880268]
[1760701462606,0.002,3791.2,3791.1,2.63775685]
[1760701463293,0.002,3791.2,3790.9,2.63782756]
[1760701463493,0.002,3791.2,3790.8,2.6379656]
[1760701463701,0.002,3791.2,3790.9,2.63789505]
[1760701463907,0.002,3791.2,3790.3,2.63831358]
[1760701464129,0.002,3791.2,3791.1,2.63775685]
[1760701465306,0.002,3791.2,3790.3,0.27881136]
[1760701465615,0.002,3791.2,3791.1,2.63775685]
[1760701465994,0.002,3791.2,3790.3,2.9171184]
[1760701466191,0.002,3791.2,3791.1,2.63775685]
[1760701467232,0.002,3791.2,3791.1,2.93725685]
[1760701467527,0.002,3791.2,3791.1,3.19526753]
[1760701469323,0.002,3791.2,3791.1,2.63775685]
[1760701470926,0.002,3791.2,3790.9,2.63784998]
[1760701470927,0.438,3791.2,3790.9,2.63787311]
[1760701471126,0.1312,3791.1,3791.0,2.63782175]
[1760701471430,0.1312,3791.1,3790.9,2.63787929]
[1760701471730,0.436,3791.0,3790.9,2.63787929]
[1760701471932,0.1312,3791.1,3791.0,2.63782643]
[1760701472231,0.436,3791.0,3790.3,0.001]
[1760701472530,0.2262,3790.4,3790.3,2.63931358]
[1760701472742,0.2262,3791.1,3790.4,2.63824398]
[1760701472895,0.2262,3791.1,3790.6,2.63804426]
[1760701473229,0.6622,3791.1,3790.3,0.001]
[1760701473437,0.002,3791.2,3790.3,2.63930724]
[1760701473438,0.03071361,3791.0,3790.3,2.63930724]
[1760701473634,0.2262,3790.9,3790.6,2.63809456]
[1760701473818,0.002,3791.2,3790.8,2.6379656]
[1760701474202,0.436,3791.1,3790.5,2.63815959]
[1760701474427,0.436,3791.1,3790.6,2.63810463]
[1760701474610,0.436,3791.1,3790.7,2.63797382]
[1760701475144,0.002,3791.2,3790.6,2.63807669]
[1760701475354,0.03271361,3791.2,3790.5,2.63810973]
[1760701475502,0.03271361,3791.2,3790.3,2.63931059]
[1760701475503,0.03271361,3791.2,3790.3,0.001]
[1760701476228,0.44654306,3791.2,3790.6,2.638089]
[1760701476798,0.44654306,3791.2,3790.3,2.63930175]
[1760701476799,0.44654306,3791.2,3790.5,2.63814704]
[1760701477000,0.88254306,3791.2,3790.3,0.001]
[1760701477305,0.85182945,3791.2,3790.3,0.001]
[1760701477505,3.105186,3791.0,3790.3,0.001]
[1760701477702,15.930325,3790.8,3790.3,0.001]
[1760701477901,5.779076,3790.6,3790.3,0.001]
[1760701478116,0.03071361,3790.5,3790.3,0.001]
[1760701478418,0.436,3790.5,3790.3,0.001]
[1760701480004,0.03071361,3790.4,3790.3,0.001]
[1760701480459,0.46671361,3790.4,3790.3,0.001]
[1760701480660,9.57890361,3790.4,3790.3,0.001]
[1760701480842,12.2800739,3790.4,3790.3,0.001]
[1760701481042,6.1797359,3790.4,3790.3,0.001]
[1760701481357,0.45993543,3790.6,3790.3,0.001]
[1760701481727,0.41393625,3790.6,3790.3,0.001]
[1760701481930,0.436,3790.9,3790.3,2.63929339]
[1760701482457,0.436,3790.9,3790.4,2.63824398]
[1760701482873,0.04599169,3791.1,3790.3,2.6393091]
[1760701483041,0.1312,3790.4,3790.3,2.6393091]
[1760701483238,0.1312,3790.4,3790.3,0.001]
[1760701483446,0.5672,3790.4,3790.3,0.001]
[1760701484132,0.98112767,3790.4,3790.3,0.001]
[1760701484355,1.02712484,3790.4,3790.3,0.001]
[1760701484772,0.98112767,3790.4,3790.3,0.001]
[1760701485837,0.54512767,3790.4,3790.3,0.001]
[1760701486026,0.41392767,3790.4,3790.3,0.001]
[1760701486967,0.41392767,3790.4,3790.3,2.63931358]
[1760701487268,0.436,3791.1,3790.4,2.63821945]
[1760701487480,0.41387764,3791.0,3790.4,2.63821945]
[1760701487629,0.41387764,3791.0,3790.3,2.6392929]
[1760701488010,12.251541,3790.7,3790.3,0.001]
[1760701488209,1.47533907,3790.6,3790.3,0.001]
[1760701488365,0.436,3790.9,3790.3,0.001]
[1760701488366,6.675216,3790.4,3790.3,0.001]
[1760701488715,0.436,3790.9,3790.3,0.001]
[1760701488915,0.45992103,3790.6,3790.3,0.001]
[1760701489222,0.03071361,3790.5,3790.3,0.001]
[1760701489924,0.436,3790.4,3790.3,0.001]
[1760701490365,0.03071361,3790.5,3790.3,0.001]
[1760701490565,0.45992103,3790.6,3790.3,0.001]
[1760701490762,0.03071361,3790.5,3790.3,0.001]
[1760701490962,0.436,3790.4,3790.3,0.001]
[1760701492472,0.436,3790.4,3789.9,0.001]
[1760701492473,0.6336,3790.3,3789.9,0.001]
[1760701492826,8.875931,3790.0,3789.9,0.001]